fUST/lending_fUST_20240524
["ID","MTS","AMOUNT","RATE_DAILY","PERIOD"]
[327864045,1716563459086,-688.242876,0.00027645,2]
[327864046,1716563459096,-17739.97971291,0.00027645,30]
[327864047,1716563459106,-207.861624,0.00027671,2]
[327864048,1716563459115,-151.0,0.00027671,2]
[327864049,1716563459125,-151.0,0.00027671,2]
[327864050,1716563459135,-500.0,0.00027671,13]
[327864051,1716563459145,-180.834296,0.00027671,2]
[327864052,1716563459154,-180.834296,0.00027671,2]
[327864053,1716563459164,-250.0,0.00027671,13]
[327864054,1716563459173,-368.14072798,0.00027671,13]
[327864055,1716563459187,-670.2,0.00027671,13]
[327864056,1716563459204,-500.0,0.00027671,13]
[327864057,1716563459222,-627.46,0.00027671,13]
[327864058,1716563459237,-500.0,0.00027671,13]
[327864059,1716563459254,-500.0,0.00027671,13]
[327864060,1716563459271,-500.0,0.00027671,13]
[327864061,1716563459285,-500.0,0.00027671,13]
[327864062,1716563459302,-448.69477065,0.00027671,13]
[327864063,1716563459320,-831.85,0.00027671,13]
[327864064,1716563459336,-535.47,0.00027671,13]
[327864065,1716563459351,-902.77,0.00027671,13]
[327864066,1716563459365,-500.0,0.00027671,13]
[327864067,1716563459380,-500.0,0.00027671,13]
[327864068,1716563459393,-500.0,0.00027671,13]
[327864069,1716563459405,-500.0,0.00027671,13]
[327864070,1716563459419,-1003.69,0.00027671,13]
[327864071,1716563459435,-297.054959,0.00027671,2]
[327864072,1716563459450,-615.12,0.00027671,13]
[327864073,1716563459466,-297.054959,0.00027671,2]
[327864074,1716563459482,-352.57858879,0.00027671,13]
[327864075,1716563459494,-1029.36,0.00027671,13]
[327864076,1716563459506,-913.62,0.00027671,13]
[327864077,1716563459520,-1050.38,0.00027671,13]
[327864078,1716563459534,-1319.31,0.00027671,13]
[327864079,1716563459549,-572.86521982,0.00027671,13]
[327864080,1716563459561,-500.0,0.00027671,13]
[327864081,1716563459574,-1025.28,0.00027671,13]
[327864082,1716563459588,-562.25,0.00027671,13]
[327864083,1716563459601,-1352.42,0.00027671,13]
[327864084,1716563459613,-151.0,0.00027671,2]
[327864085,1716563459627,-1741.98,0.00027671,13]
[327864086,1716563459640,-500.0,0.00027671,13]
[327864087,1716563459653,-151.0,0.00027671,2]
[327864088,1716563459666,-758.1,0.00027671,13]
[327864089,1716563459680,-151.0,0.00027671,2]
[327864090,1716563459692,-553.66,0.00027671,13]
[327864091,1716563459705,-488.255513,0.00027671,2]
[327864092,1716563459718,-488.255513,0.00027671,2]
[327864093,1716563459730,-500.0,0.00027671,13]
[327864094,1716563459744,-299.531942,0.00027671,2]
[327864095,1716563459758,-605.03,0.00027671,13]
[327864096,1716563459772,-500.0,0.00027671,13]
[327864097,1716563459785,-807.7,0.00027671,13]
[327864098,1716563459798,-500.0,0.00027671,13]
[327864099,1716563459811,-1167.23,0.00027671,13]
[327864100,1716563459824,-500.0,0.00027671,13]
[327864101,1716563459836,-500.0,0.00027671,13]
[327864102,1716563459849,-1266.99,0.00027671,13]
[327864103,1716563459862,-151.0,0.00027671,2]
[327864104,1716563459874,-1109.82,0.00027671,13]
[327864105,1716563459887,-1914.36,0.00027671,13]
[327864106,1716563459900,-500.0,0.00027671,13]
[327864107,1716563459914,-978.64,0.00027671,13]
[327864108,1716563459926,-554.51,0.00027671,13]
[327864109,1716563459939,-1834.66,0.00027671,13]
[327864110,1716563459952,-928.42,0.00027671,13]
[327864111,1716563459965,-500.0,0.00027671,13]
[327864112,1716563459977,-500.0,0.00027671,13]
[327864113,1716563459990,-1335.47,0.00027671,13]
[327864114,1716563460003,-3728.77,0.00027671,13]
[327864115,1716563460015,-500.0,0.00027671,13]
[327864116,1716563460028,-533.33,0.00027671,13]
[327864117,1716563460042,-500.0,0.00027671,13]
[327864118,1716563460055,-288.415256,0.00027671,2]
[327864119,1716563460067,-747.37,0.00027671,13]
[327864120,1716563460081,-288.415256,0.00027671,2]
[327864121,1716563460091,-500.0,0.00027671,13]
[327864122,1716563460101,-500.0,0.00027671,13]
[327864123,1716563460111,-500.0,0.00027671,13]
[327864124,1716563460121,-3668.68,0.00027671,13]
[327864125,1716563460131,-1198.07,0.00027671,13]
[327864126,1716563460141,-584.847069,0.00027671,2]
[327864127,1716563460150,-584.847069,0.00027671,2]
[327864128,1716563460160,-526.6,0.00027671,13]
[327864129,1716563460170,-1464.19,0.00027671,13]
[327864130,1716563460180,-1164.05,0.00027671,13]
[327864131,1716563460190,-614.2,0.00027671,13]
[327864132,1716563460200,-10703.05,0.00027671,13]
[327864133,1716563460210,-1606.02,0.00027671,13]
[327864134,1716563460221,-897.89,0.00027671,13]
[327864135,1716563460233,-500.0,0.00027671,13]
[327864136,1716563460244,-500.0,0.00027671,13]
[327864137,1716563460254,-3249.69,0.00027671,13]
[327864138,1716563460266,-500.0,0.00027671,13]
[327864139,1716563460278,-1564.26,0.00027671,13]
[327864140,1716563460288,-500.0,0.00027671,13]
[327864141,1716563460298,-12628.55,0.00027671,13]
[327864142,1716563460308,-1473.95,0.00027671,13]
[327864143,1716563460321,-959.82,0.00027671,13]
[327864144,1716563460332,-2131.58,0.00027671,13]
[327864145,1716563460342,-519.32,0.00027671,13]
[327864146,1716563460353,-500.0,0.00027671,7]
[327864147,1716563460363,-500.0,0.00027671,13]
[327864148,1716563460373,-1391.49,0.00027671,13]
[327864149,1716563460384,-500.0,0.00027671,13]
[327864150,1716563460626,-632.22,0.00027671,13]
[327864151,1716563460645,-662.16,0.00027671,13]
[327864152,1716563460657,-802.15,0.00027671,13]
[327864153,1716563460668,-771.62,0.00027671,13]
[327864154,1716563460678,-500.0,0.00027671,13]
[327864155,1716563460688,-151.0,0.00027671,2]
[327864156,1716563460698,-171.1944512,0.00027671,2]
[327864157,1716563460708,-291.561811,0.00027784,2]
[327864158,1716563460718,-291.561811,0.00027784,2]
[327864159,1716563460728,-291.6248309,0.00027836,2]
[327864160,1716563460737,-291.6248309,0.00027836,2]
[327864161,1716563460747,-291.6248309,0.00027836,2]
[327864162,1716563460756,-291.6248309,0.00027836,2]
[327864163,1716563460768,-291.6248309,0.00027836,2]
[327864164,1716563460778,-151.0,0.00027836,2]
[327864165,1716563460788,-151.0,0.00027836,2]
[327864166,1716563460799,-555.458354,0.00027836,2]
[327864167,1716563460808,-555.458354,0.00027836,2]
[327864168,1716563460817,-151.0,0.00027945,2]
[327864169,1716563460827,-500.0,0.00027945,14]
[327864170,1716563460837,-180.834296,0.00027945,2]
[327864171,1716563460846,-180.834296,0.00027945,2]
[327864172,1716563460856,-250.0,0.00027945,14]
[327864173,1716563460865,-670.2,0.00027945,14]
[327864174,1716563460874,-500.0,0.00027945,14]
[327864175,1716563460883,-627.46,0.00027945,14]
[327864176,1716563460892,-500.0,0.00027945,14]
[327864177,1716563460902,-197.458805,0.00027945,2]
[327864178,1716563460912,-500.0,0.00027945,14]
[327864179,1716563460922,-197.458805,0.00027945,2]
[327864180,1716563460932,-500.0,0.00027945,14]
[327864181,1716563460942,-500.0,0.00027945,14]
[327864182,1716563460951,-316.115715,0.00027945,2]
[327864183,1716563460962,-831.85,0.00027945,14]
[327864184,1716563460971,-316.115715,0.00027945,2]
[327864185,1716563460980,-535.47,0.00027945,14]
[327864186,1716563460990,-902.77,0.00027945,14]
[327864187,1716563460999,-500.0,0.00027945,14]
[327864188,1716563461009,-500.0,0.00027945,14]
[327864189,1716563461025,-500.0,0.00027945,14]
[327864190,1716563461034,-500.0,0.00027945,14]
[327864191,1716563461044,-1003.69,0.00027945,14]
[327864192,1716563461053,-615.12,0.00027945,14]
[327864193,1716563461062,-1029.36,0.00027945,14]
[327864194,1716563461073,-913.62,0.00027945,14]
[327864195,1716563461083,-1050.38,0.00027945,14]
[327864196,1716563461092,-1319.31,0.00027945,14]
[327864197,1716563461102,-500.0,0.00027945,14]
[327864198,1716563461112,-1025.28,0.00027945,14]
[327864199,1716563461122,-562.25,0.00027945,14]
[327864200,1716563461132,-1352.42,0.00027945,14]
[327864201,1716563461142,-151.0,0.00027945,2]
[327864202,1716563461151,-1741.98,0.00027945,14]
[327864203,1716563461161,-500.0,0.00027945,14]
[327864204,1716563461171,-151.0,0.00027945,2]
[327864205,1716563461181,-758.1,0.00027945,14]
[327864206,1716563461190,-151.0,0.00027945,2]
[327864207,1716563461200,-553.66,0.00027945,14]
[327864208,1716563461209,-488.255513,0.00027945,2]
[327864209,1716563461220,-488.255513,0.00027945,2]
[327864210,1716563461233,-500.0,0.00027945,14]
[327864211,1716563461244,-605.03,0.00027945,14]
[327864212,1716563461254,-500.0,0.00027945,14]
[327864213,1716563461265,-807.7,0.00027945,14]
[327864214,1716563461275,-500.0,0.00027945,14]
[327864215,1716563461285,-1167.23,0.00027945,14]
[327864216,1716563461294,-500.0,0.00027945,14]
[327864217,1716563461306,-500.0,0.00027945,14]
[327864218,1716563461316,-1266.99,0.00027945,14]
[327864219,1716563461325,-151.0,0.00027945,2]
[327864220,1716563461334,-1109.82,0.00027945,14]
[327864221,1716563461344,-1914.36,0.00027945,14]
[327864222,1716563461353,-500.0,0.00027945,14]
[327864223,1716563461362,-978.64,0.00027945,14]
[327864224,1716563461371,-554.51,0.00027945,14]
[327864225,1716563461379,-1834.66,0.00027945,14]
[327864226,1716563461388,-928.42,0.00027945,14]
[327864227,1716563461398,-500.0,0.00027945,14]
[327864228,1716563461408,-500.0,0.00027945,14]
[327864229,1716563461417,-1335.47,0.00027945,14]
[327864230,1716563461427,-3728.77,0.00027945,14]
[327864231,1716563461437,-500.0,0.00027945,14]
[327864232,1716563461446,-533.33,0.00027945,14]
[327864233,1716563461456,-500.0,0.00027945,14]
[327864234,1716563461467,-288.415256,0.00027945,2]
[327864235,1716563461476,-288.415256,0.00027945,2]
[327864236,1716563461486,-229.23090353,0.00027945,14]
[327864237,1716563461496,-747.37,0.00027945,14]
[327864238,1716563461507,-500.0,0.00027945,14]
[327864239,1716563461518,-500.0,0.00027945,14]
[327864240,1716563461528,-3668.68,0.00027945,14]
[327864241,1716563461537,-1198.07,0.00027945,14]
[327864242,1716563461547,-584.847069,0.00027945,2]
[327864243,1716563461556,-584.847069,0.00027945,2]
[327864244,1716563461568,-526.6,0.00027945,14]
[327864245,1716563461581,-1464.19,0.00027945,14]
[327864246,1716563461590,-1164.05,0.00027945,14]
[327864247,1716563461600,-614.2,0.00027945,14]
[327864248,1716563461610,-10703.05,0.00027945,14]
[327864249,1716563461620,-1606.02,0.00027945,14]
[327864250,1716563461630,-897.89,0.00027945,14]
[327864251,1716563461640,-500.0,0.00027945,14]
[327864252,1716563461650,-500.0,0.00027945,14]
[327864253,1716563461660,-3249.69,0.00027945,14]
[327864254,1716563461669,-410.10293825,0.00027945,14]
[327864255,1716563461679,-1564.26,0.00027945,14]
[327864256,1716563461689,-500.0,0.00027945,14]
[327864257,1716563461699,-12628.55,0.00027945,14]
[327864258,1716563461708,-1473.95,0.00027945,14]
[327864259,1716563461718,-959.82,0.00027945,14]
[327864260,1716563461727,-2131.58,0.00027945,14]
[327864261,1716563461737,-519.32,0.00027945,14]
[327864262,1716563461746,-688.242876,0.00027945,2]
[327864263,1716563461756,-688.242876,0.00027945,2]
[327864264,1716563461767,-500.0,0.00027945,7]
[327864265,1716563461777,-500.0,0.00027945,14]
[327864266,1716563461794,-1391.49,0.00027945,14]
[327864267,1716563461804,-500.0,0.00027945,14]
[327864268,1716563461814,-632.22,0.00027945,14]
[327864269,1716563461823,-662.16,0.00027945,14]
[327864270,1716563461832,-802.15,0.00027945,14]
[327864271,1716563461843,-771.62,0.00027945,14]
[327864272,1716563461852,-500.0,0.00027945,14]
[327864273,1716563461861,-160.0,0.00027999,10]
[327864274,1716563461871,-11096.63411944,0.00028,11]
[327864275,1716563461880,-221.71239944,0.00028,2]
[327864276,1716563461890,-1000.0,0.00028,9]
[327864277,1716563461899,-125748.46007277,0.00028,4]
[327864278,1716563461908,-41249.15051067,0.00028,4]
[327864279,1716563462434,223.07296701,0.00020913,2]
[327864280,1716563462559,1067.47162715,0.00020913,2]
[327864295,1716563853143,5833.20963807,0.0002,11]
[327864300,1716563972950,2916.60481903,0.00019999,11]
[327864302,1716564092610,1458.30240952,0.0002,11]
[327864303,1716564213137,729.15120476,0.0002,11]
[327864304,1716564333064,364.57560238,0.0002,11]
[327864305,1716564428149,-256.85740147,0.00018,2]
[327864306,1716564432150,-334.70824409,0.00018,2]
[327864307,1716564441110,-189.72539136,0.00018,2]
[327864308,1716564448116,-115.02113122,0.00018,2]
[327864309,1716564448137,-40.02228094,0.00019204,2]
[327864310,1716564452935,182.28780119,0.00019205,11]
[327864311,1716564549119,-896.31216814,0.00019203,2]
[327864312,1716564549142,-347.07771906,0.00019204,2]
[327864313,1716564549163,-45146.02276995,0.00019204,2]
[327864314,1716564549185,-500.0,0.00019204,2]
[327864315,1716564549211,-500.0,0.00019204,2]
[327864316,1716564549233,-180.0,0.00019204,2]
[327864317,1716564549437,-500.0,0.00019204,2]
[327864318,1716564549468,-500.0,0.00019204,2]
[327864319,1716564549490,-284.441,0.00019204,2]
[327864320,1716564549512,-196.29328983,0.00019204,2]
[327864321,1716564549534,-500.0,0.00019204,2]
[327864322,1716564549561,-500.0,0.00019204,2]
[327864323,1716564549584,-500.0,0.00019204,2]
[327864324,1716564549607,-464.24458203,0.00019204,2]
[327864325,1716564549639,-500.0,0.00019204,2]
[327864326,1716564549665,-500.0,0.00019204,2]
[327864327,1716564549692,-500.0,0.00019204,2]
[327864328,1716564549721,-500.0,0.00019204,2]
[327864329,1716564549744,-500.0,0.00019204,2]
[327864330,1716564549771,-500.0,0.00019204,2]
[327864331,1716564549797,-500.0,0.00019204,2]
[327864332,1716564549824,-500.0,0.00019204,2]
[327864333,1716564549850,-500.0,0.00019204,2]
[327864334,1716564549878,-500.0,0.00019204,2]
[327864335,1716564549904,-500.0,0.00019204,2]
[327864336,1716564549931,-500.0,0.00019204,2]
[327864337,1716564549957,-500.0,0.00019204,2]
[327864338,1716564549983,-500.0,0.00019204,2]
[327864339,1716564550008,-500.0,0.00019204,2]
[327864340,1716564550035,-500.0,0.00019204,2]
[327864341,1716564550061,-500.0,0.00019204,2]
[327864342,1716564550086,-500.0,0.00019204,2]
[327864343,1716564550119,-179.61463701,0.00019204,2]
[327864344,1716564550148,-500.0,0.00019204,2]
[327864345,1716564550173,-500.0,0.00019204,2]
[327864346,1716564550198,-500.0,0.00019204,2]
[327864347,1716564550224,-400.0,0.00019204,2]
[327864348,1716564550249,-500.0,0.00019204,2]
[327864349,1716564550278,-500.0,0.00019204,2]
[327864350,1716564550303,-500.0,0.00019204,2]
[327864351,1716564550329,-500.0,0.00019204,2]
[327864352,1716564550358,-500.0,0.00019204,2]
[327864353,1716564550390,-500.0,0.00019204,2]
[327864354,1716564550416,-500.0,0.00019204,2]
[327864355,1716564550436,-71154.76825228,0.00019205,2]
[327864356,1716564555088,-6737.96681602,0.00019205,2]
[327864357,1716564555109,-154.82968734,0.00019205,2]
[327864358,1716564555132,-374.28982393,0.00019899,2]
[327864359,1716564572485,154.82968734,0.00019205,2]
[327864367,1716564594506,99.23904345,0.00019205,2]
[327864368,1716564594527,128.07521915,0.00019205,2]
[327864373,1716564609530,53.013705,0.000189,2]
[327864374,1716564609551,273.12028749,0.000189,2]
[327864375,1716564609574,245.90409716,0.000189,2]
[327864410,1716564632710,-22859.27879206,0.0002,2]
[327864411,1716564632720,-327.50359593,0.00020813,2]
[327864412,1716564632729,-157.45114224,0.0002091,2]
[327864413,1716564632741,-187.44398225,0.0002091,2]
[327864414,1716564632751,-154.87609912,0.0002091,2]
[327864415,1716564632760,-156.4848178,0.0002091,2]
[327864416,1716564632769,-273.63617521,0.0002091,2]
[327864417,1716564632780,-264.40789058,0.0002091,2]
[327864418,1716564632789,-1046.4253814,0.0002091,2]
[327864419,1716564632798,-369.72539136,0.00020911,2]
[327864420,1716564632807,-6266.58275017,0.00020913,2]
[327864421,1716564632817,-235.02686068,0.00020913,2]
[327864422,1716564632826,-155.04341216,0.00020913,2]
[327864423,1716564632835,-3980.75777852,0.00021,2]
[327864424,1716564632844,-166.666666,0.00021918,2]
[327864425,1716564632854,-166.666666,0.00022431,2]
[327864426,1716564632864,-166.666666,0.00022944,2]
[327864427,1716564632873,-166.666666,0.00023456,2]
[327864428,1716564632882,-20000.0,0.00023666,2]
[327864429,1716564632892,-572.03808965,0.000239,2]
[327864430,1716564632902,-151.0,0.00023929,5]
[327864431,1716564632911,-166.666666,0.00023969,2]
[327864432,1716564632920,-4136.83185193,0.00024,2]
[327864433,1716564632930,-151.0,0.00024299,5]
[327864434,1716564632939,-218.262251,0.00024384,2]
[327864435,1716564632948,-546.988421,0.00024384,2]
[327864436,1716564632958,-166.666666,0.00024482,2]
[327864437,1716564632967,-2000.0,0.00024557,2]
[327864438,1716564632976,-182.28780118,0.00024657,11]
[327864439,1716564632985,-250.0,0.00024657,2]
[327864440,1716564632995,-500.0,0.00024657,2]
[327864441,1716564633004,-189.7027806,0.00024657,2]
[327864442,1716564633013,-500.0,0.00024657,2]
[327864443,1716564633023,-500.0,0.00024657,2]
[327864444,1716564633032,-500.0,0.00024657,2]
[327864445,1716564633041,-500.0,0.00024657,2]
[327864446,1716564633051,-500.0,0.00024657,2]
[327864447,1716564633060,-500.0,0.00024657,2]
[327864448,1716564633069,-500.0,0.00024657,2]
[327864449,1716564633078,-500.0,0.00024657,2]
[327864450,1716564633087,-500.0,0.00024657,2]
[327864451,1716564633097,-500.0,0.00024657,2]
[327864452,1716564633106,-500.77,0.00024657,2]
[327864453,1716564633115,-500.0,0.00024657,2]
[327864454,1716564633125,-500.0,0.00024657,2]
[327864455,1716564633134,-500.0,0.00024657,2]
[327864456,1716564633143,-500.0,0.00024657,2]
[327864457,1716564633152,-500.0,0.00024657,2]
[327864458,1716564633162,-500.0,0.00024657,2]
[327864459,1716564633171,-500.0,0.00024657,2]
[327864460,1716564633181,-500.0,0.00024657,2]
[327864461,1716564633190,-500.0,0.00024657,2]
[327864462,1716564633199,-982.83283276,0.00024657,2]
[327864513,1716564638478,-114.39270611,0.00024656,2]
[327864514,1716564638490,-184.01870382,0.00024656,2]
[327864516,1716564638499,-336.189,0.00024656,2]
[327864517,1716564638508,-389.2733746,0.00024656,2]
[327864518,1716564638518,-500.0,0.00024656,2]
[327864519,1716564638528,-500.0,0.00024656,2]
[327864520,1716564638537,-473.8843911,0.00024656,2]
[327864521,1716564638546,-500.0,0.00024656,2]
[327864522,1716564638556,-500.0,0.00024656,2]
[327864523,1716564638566,-500.0,0.00024656,2]
[327864524,1716564638576,-500.0,0.00024656,2]
[327864525,1716564638585,-500.0,0.00024656,2]
[327864526,1716564638595,-500.0,0.00024656,2]
[327864527,1716564638604,-500.0,0.00024656,2]
[327864528,1716564638613,-500.0,0.00024656,2]
[327864529,1716564638623,-17.16716724,0.00024657,2]
[327864530,1716564638634,-500.0,0.00024657,2]
[327864531,1716564638643,-500.0,0.00024657,2]
[327864532,1716564638657,-500.0,0.00024657,2]
[327864533,1716564638666,-500.0,0.00024657,2]
[327864534,1716564638675,-500.0,0.00024657,2]
[327864535,1716564638686,-500.0,0.00024657,2]
[327864536,1716564638697,-500.0,0.00024657,2]
[327864537,1716564638706,-500.0,0.00024657,2]
[327864538,1716564638715,-561.5,0.00024657,2]
[327864539,1716564638724,-500.0,0.00024657,2]
[327864540,1716564638734,-500.0,0.00024657,2]
[327864541,1716564638744,-500.0,0.00024657,2]
[327864542,1716564638753,-500.0,0.00024657,2]
[327864543,1716564638763,-500.0,0.00024657,2]
[327864544,1716564638772,-500.0,0.00024657,2]
[327864545,1716564638782,-500.0,0.00024657,2]
[327864546,1716564638792,-500.0,0.00024657,2]
[327864547,1716564638802,-500.0,0.00024657,2]
[327864548,1716564638811,-500.0,0.00024657,2]
[327864549,1716564638820,-500.0,0.00024657,2]
[327864550,1716564638831,-500.0,0.00024657,2]
[327864551,1716564638841,-500.0,0.00024657,2]
[327864552,1716564638850,-500.0,0.00024657,2]
[327864553,1716564638859,-500.0,0.00024657,2]
[327864554,1716564638868,-500.0,0.00024657,2]
[327864555,1716564638878,-609.98,0.00024657,2]
[327864556,1716564638887,-500.0,0.00024657,2]
[327864557,1716564638896,-500.0,0.00024657,2]
[327864558,1716564638905,-500.0,0.00024657,2]
[327864559,1716564638915,-500.0,0.00024657,2]
[327864560,1716564638924,-500.0,0.00024657,2]
[327864561,1716564638934,-616.7,0.00024657,2]
[327864562,1716564638944,-500.0,0.00024657,2]
[327864563,1716564638953,-969.24,0.00024657,2]
[327864564,1716564638962,-719.31,0.00024657,2]
[327864565,1716564638972,-500.0,0.00024657,2]
[327864566,1716564638981,-1248.42,0.00024657,2]
[327864567,1716564638991,-500.0,0.00024657,2]
[327864568,1716564639000,-500.0,0.00024657,2]
[327864569,1716564639010,-945.5,0.00024657,2]
[327864570,1716564639019,-500.0,0.00024657,2]
[327864571,1716564639029,-209.5311994,0.00024657,2]
[327864572,1716564639038,-500.0,0.00024657,2]
[327864573,1716564639048,-500.0,0.00024657,2]
[327864574,1716564639059,-500.0,0.00024657,2]
[327864575,1716564639068,-603.17,0.00024657,2]
[327864576,1716564639078,-2571.68,0.00024657,2]
[327864577,1716564639087,-849.22,0.00024657,2]
[327864578,1716564639097,-500.0,0.00024657,2]
[327864579,1716564639106,-749.55,0.00024657,2]
[327864580,1716564639115,-500.0,0.00024657,2]
[327864581,1716564639125,-500.0,0.00024657,2]
[327864582,1716564639134,-500.0,0.00024657,2]
[327864583,1716564639144,-500.0,0.00024657,2]
[327864584,1716564639153,-500.0,0.00024657,2]
[327864585,1716564639163,-500.0,0.00024657,2]
[327864586,1716564639172,-500.0,0.00024657,2]
[327864587,1716564639181,-500.0,0.00024657,2]
[327864588,1716564639191,-1059.43,0.00024657,2]
[327864589,1716564639201,-7502.62,0.00024657,2]
[327864590,1716564639210,-530.31,0.00024657,2]
[327864591,1716564639219,-2504.19,0.00024657,2]
[327864592,1716564639229,-8030.01,0.00024657,2]
[327864593,1716564639238,-500.0,0.00024657,3]
[327864594,1716564639248,-500.0,0.00024657,3]
[327864595,1716564639257,-500.0,0.00024657,3]
[327864596,1716564639266,-500.0,0.00024657,2]
[327864597,1716564639276,-500.0,0.00024657,2]
[327864598,1716564639488,-500.0,0.00024657,2]
[327864599,1716564639499,-500.0,0.00024657,2]
[327864600,1716564639508,-500.0,0.00024657,2]
[327864601,1716564639518,-500.0,0.00024657,2]
[327864602,1716564639528,-889.01,0.00024657,2]
[327864603,1716564639537,-545.91,0.00024657,2]
[327864604,1716564639548,-500.0,0.00024657,2]
[327864605,1716564639557,-1614.07,0.00024657,2]
[327864606,1716564639567,-6148.34,0.00024657,2]
[327864607,1716564639576,-1068.24,0.00024657,2]
[327864608,1716564639586,-500.0,0.00024657,2]
[327864609,1716564639596,-500.0,0.00024657,2]
[327864610,1716564639605,-924.4,0.00024657,2]
[327864611,1716564639615,-500.0,0.00024657,2]
[327864612,1716564639624,-884.62,0.00024657,2]
[327864613,1716564639634,-500.0,0.00024657,2]
[327864614,1716564639644,-500.0,0.00024657,2]
[327864615,1716564639658,-500.0,0.00024657,2]
[327864616,1716564639668,-500.0,0.00024657,2]
[327864617,1716564639678,-500.0,0.00024657,2]
[327864618,1716564639687,-500.0,0.00024657,3]
[327864619,1716564639700,-500.0,0.00024657,4]
[327864620,1716564639710,-4788.64,0.00024657,2]
[327864621,1716564639719,-500.0,0.00024657,2]
[327864622,1716564639731,-500.0,0.00024657,2]
[327864623,1716564639740,-812.5,0.00024657,2]
[327864624,1716564639751,-500.0,0.00024657,2]
[327864625,1716564639761,-500.0,0.00024657,2]
[327864626,1716564639770,-500.0,0.00024657,2]
[327864627,1716564639780,-1661.62,0.00024657,2]
[327864628,1716564639789,-500.0,0.00024657,2]
[327864629,1716564639799,-500.0,0.00024657,2]
[327864630,1716564639809,-1173.5,0.00024657,2]
[327864631,1716564639819,-500.0,0.00024657,2]
[327864632,1716564639828,-806.11,0.00024657,2]
[327864633,1716564639838,-202.28300314,0.00024657,2]
[327864634,1716564639848,-3102.78,0.00024657,2]
[327864635,1716564639858,-630.79460569,0.00024657,2]
[327864636,1716564639867,-500.0,0.00024657,2]
[327864637,1716564639877,-500.0,0.00024657,2]
[327864638,1716564639887,-500.0,0.00024657,2]
[327864639,1716564639897,-1278.05,0.00024657,2]
[327864640,1716564639908,-500.0,0.00024657,2]
[327864642,1716564639918,-500.0,0.00024657,2]
[327864643,1716564639928,-500.0,0.00024657,2]
[327864644,1716564639938,-500.0,0.00024657,2]
[327864645,1716564639949,-500.0,0.00024657,2]
[327864646,1716564639959,-500.0,0.00024657,2]
[327864647,1716564639968,-1329.45,0.00024657,2]
[327864648,1716564639977,-1112.55,0.00024657,2]
[327864649,1716564639988,-500.0,0.00024657,2]
[327864650,1716564639997,-653.06,0.00024657,2]
[327864651,1716564640008,-1910.11,0.00024657,2]
[327864652,1716564640018,-500.0,0.00024657,2]
[327864653,1716564640028,-500.0,0.00024657,2]
[327864654,1716564640037,-500.0,0.00024657,2]
[327864655,1716564640047,-1049.93,0.00024657,2]
[327864656,1716564640057,-1410.9,0.00024657,2]
[327864657,1716564640067,-500.0,0.00024657,2]
[327864658,1716564640077,-500.0,0.00024657,2]
[327864659,1716564640086,-500.0,0.00024657,2]
[327864660,1716564640096,-500.0,0.00024657,2]